[Event "*** Titled Tuesday 3|2 Blitz"]
[Site "Chess.com"]
[Date "2015.04.07"]
[Round "3"]
[White "Mugzyyy"]
[Black "pedromartinez91"]
[Result "1-0"]
[WhiteElo "2440"]
[BlackElo "2164"]
[TimeControl "180+2"]
[EndTime "11:31:44 PDT"]
[Termination "Mugzyyy won - game abandoned"]

1. d4 {[%clk 0:02:56.1]} 1... d5 {[%clk 0:02:57.6]} 2. c4 {[%clk 0:02:54.3]}
2... e6 {[%clk 0:02:56.4]} 3. Nc3 {[%clk 0:02:54.4]} 3... Nf6 {[%clk 0:02:56.9]}
4. Bf4 {[%clk 0:02:54.9]} 4... Be7 {[%clk 0:02:57]} 5. e3 {[%clk 0:02:55.8]}
5... O-O {[%clk 0:02:57.7]} 6. a3 {[%clk 0:02:57.1]} 6... Nbd7 {[%clk
0:02:57.9]} 7. Nb5 {[%clk 0:02:56.6]} 7... c6 {[%clk 0:02:57.7]} 8. Bc7 {[%clk
0:02:56.1]} 8... Qe8 {[%clk 0:02:50.2]} 9. Nd6 {[%clk 0:02:57.2]} 9... Bxd6
{[%clk 0:02:50.9]} 10. Bxd6 {[%clk 0:02:58.8]} 10... Ne4 {[%clk 0:02:51]} 11.
Bxf8 {[%clk 0:03:00]} 11... Qxf8 {[%clk 0:02:51]} 12. Bd3 {[%clk 0:03:01.6]}
12... Nef6 {[%clk 0:02:50.2]} 13. Nf3 {[%clk 0:03:02.3]} 13... h6 {[%clk
0:02:44.2]} 14. O-O {[%clk 0:03:02.6]} 14... Qd8 {[%clk 0:02:41.3]} 15. b4
{[%clk 0:03:00.4]} 15... Nb6 {[%clk 0:02:38.9]} 16. c5 {[%clk 0:02:58.7]} 16...
Nbd7 {[%clk 0:02:39.7]} 17. Ne5 {[%clk 0:02:59.4]} 17... Nf8 {[%clk 0:02:40.6]}
18. f4 {[%clk 0:02:58.4]} 18... Ne8 {[%clk 0:02:41.1]} 19. a4 {[%clk 0:02:58.6]}
19... Nc7 {[%clk 0:02:30.6]} 20. b5 {[%clk 0:02:59.2]} 1-0

[Event "*** Titled Tuesday 3|2 Blitz"]
[Site "Chess.com"]
[Date "2015.04.07"]
[Round "3"]
[White "David_Klein"]
[Black "chessloveyou"]
[Result "1-0"]
[WhiteElo "2348"]
[BlackElo "2116"]
[TimeControl "180+2"]
[EndTime "11:32:50 PDT"]
[Termination "David_Klein won by resignation"]

1. e4 {[%clk 0:03:01.9]} 1... c6 {[%clk 0:02:59.7]} 2. d4 {[%clk 0:02:57.9]}
2... d5 {[%clk 0:02:54.5]} 3. Nd2 {[%clk 0:02:58.8]} 3... dxe4 {[%clk
0:02:53.9]} 4. Nxe4 {[%clk 0:03:00.7]} 4... Nd7 {[%clk 0:02:47.7]} 5. Ng5 {[%clk
0:02:58]} 5... e6 {[%clk 0:02:46]} 6. Bd3 {[%clk 0:02:55.2]} 6... Ngf6 {[%clk
0:02:43.8]} 7. N1f3 {[%clk 0:02:51]} 7... Be7 {[%clk 0:02:30.7]} 8. Qe2 {[%clk
0:02:44.9]} 8... Nf8 {[%clk 0:02:21.6]} 9. Ne5 {[%clk 0:02:43.4]} 9... Qxd4
{[%clk 0:02:07.8]} 10. Ngxf7 {[%clk 0:02:41.8]} 10... Rg8 {[%clk 0:02:07.7]} 11.
c3 {[%clk 0:02:42]} 11... Qd5 {[%clk 0:01:47.2]} 12. O-O {[%clk 0:02:40.1]}
12... N8d7 {[%clk 0:01:31.9]} 13. Bf4 {[%clk 0:02:37]} 13... g5 {[%clk
0:01:18.6]} 14. Bg3 {[%clk 0:02:35.9]} 14... h5 {[%clk 0:01:15.2]} 15. h3 {[%clk
0:02:30.2]} 15... g4 {[%clk 0:01:10.3]} 16. h4 {[%clk 0:02:29.9]} 16... Nxe5
{[%clk 0:01:04.1]} 17. Nxe5 {[%clk 0:02:29.5]} 17... Bd7 {[%clk 0:00:50.3]} 18.
Bg6+ {[%clk 0:02:29.1]} 18... Kd8 {[%clk 0:00:44.3]} 19. Rad1 {[%clk 0:02:29.3]}
19... Qb5 {[%clk 0:00:33.8]} 20. c4 {[%clk 0:02:28.4]} 20... Qa5 {[%clk
0:00:20.8]} 21. Rd2 {[%clk 0:02:25.5]} 21... Kc8 {[%clk 0:00:18.4]} 22. Nxd7
{[%clk 0:02:24.8]} 22... Rxg6 {[%clk 0:00:14.7]} 23. Nf8 {[%clk 0:02:22.2]} 1-0

[Event "*** Titled Tuesday 3|2 Blitz"]
[Site "Chess.com"]
[Date "2015.04.07"]
[Round "3"]
[White "gumersindo"]
[Black "AndrewMcStone"]
[Result "0-1"]
[WhiteElo "2111"]
[BlackElo "1943"]
[TimeControl "180+2"]
[EndTime "11:35:42 PDT"]
[Termination "AndrewMcStone won by checkmate"]

1. d4 {[%clk 0:03:01.9]} 1... Nf6 {[%clk 0:03:00.8]} 2. c4 {[%clk 0:03:02.5]}
2... Nc6 {[%clk 0:03:01.5]} 3. Nc3 {[%clk 0:03:00.6]} 3... e5 {[%clk 0:03:01.6]}
4. d5 {[%clk 0:02:58.8]} 4... Ne7 {[%clk 0:03:03]} 5. e4 {[%clk 0:02:56.1]} 5...
Ng6 {[%clk 0:03:04]} 6. Be3 {[%clk 0:02:54.5]} 6... Bb4 {[%clk 0:03:04.7]} 7. f3
{[%clk 0:02:53.7]} 7... Bxc3+ {[%clk 0:03:02.7]} 8. bxc3 {[%clk 0:02:53.9]} 8...
O-O {[%clk 0:03:00]} 9. c5 {[%clk 0:02:54.2]} 9... d6 {[%clk 0:03:00.7]} 10. Ne2
{[%clk 0:02:50.7]} 10... Nh5 {[%clk 0:02:46.1]} 11. Qd2 {[%clk 0:02:44.8]} 11...
f5 {[%clk 0:02:01.4]} 12. exf5 {[%clk 0:02:37.3]} 12... Rxf5 {[%clk 0:01:52.8]}
13. Ng3 {[%clk 0:02:27]} 13... Qh4 {[%clk 0:01:32.9]} 14. Bf2 {[%clk 0:02:20.7]}
14... Nxg3 {[%clk 0:01:30.5]} 15. Bxg3 {[%clk 0:02:21.1]} 15... Qe7 {[%clk
0:01:17.3]} 16. Bd3 {[%clk 0:02:18.8]} 16... Rf7 {[%clk 0:00:43.2]} 17. cxd6
{[%clk 0:02:15.2]} 17... cxd6 {[%clk 0:00:43.7]} 18. O-O {[%clk 0:02:01.4]}
18... Nf4 {[%clk 0:00:44.6]} 19. Be4 {[%clk 0:02:02.8]} 19... Qg5 {[%clk
0:00:39.7]} 20. Kh1 {[%clk 0:01:59.4]} 20... Bd7 {[%clk 0:00:21.3]} 21. c4
{[%clk 0:01:55.2]} 21... b6 {[%clk 0:00:21.6]} 22. a4 {[%clk 0:01:49.4]} 22...
Rc8 {[%clk 0:00:21.6]} 23. a5 {[%clk 0:01:49.3]} 23... Rxc4 {[%clk 0:00:22.4]}
24. axb6 {[%clk 0:01:50]} 24... axb6 {[%clk 0:00:24.1]} 25. Ra8+ {[%clk
0:01:48.7]} 25... Rf8 {[%clk 0:00:25.2]} 26. Ra7 {[%clk 0:01:49.7]} 26... Bf5
{[%clk 0:00:23.6]} 27. Bxf5 {[%clk 0:01:43.8]} 27... Qxf5 {[%clk 0:00:22.8]} 28.
Qb2 {[%clk 0:01:29.9]} 28... Rc2 {[%clk 0:00:21.9]} 29. Qxb6 {[%clk 0:01:30.4]}
29... Nxg2 {[%clk 0:00:18.5]} 30. Qxd6 {[%clk 0:01:26.4]} 30... Nf4 {[%clk
0:00:17.6]} 31. Rg1 {[%clk 0:01:16.4]} 31... h6 {[%clk 0:00:16.2]} 32. Rxg7+
{[%clk 0:01:00.9]} 32... Kxg7 {[%clk 0:00:07.4]} 33. Bxf4+ {[%clk 0:00:59.6]}
33... Kf7 {[%clk 0:00:08]} 34. Qc7+ {[%clk 0:00:56.3]} 34... Rxc7 {[%clk
0:00:07.7]} 35. Bxh6 {[%clk 0:00:42.5]} 35... Qxf3+ {[%clk 0:00:08.1]} 36. Rg2
{[%clk 0:00:42.8]} 36... Rg8 {[%clk 0:00:09.5]} 37. Bg7 {[%clk 0:00:40.3]} 37...
Rxg7 {[%clk 0:00:10]} 38. d6 {[%clk 0:00:41]} 38... Qxg2# {[%clk 0:00:11.4]} 0-1

[Event "*** Titled Tuesday 3|2 Blitz"]
[Site "Chess.com"]
[Date "2015.04.07"]
[Round "3"]
[White "GMBenjaminBok"]
[Black "iFrancisco"]
[Result "1-0"]
[WhiteElo "2440"]
[BlackElo "2216"]
[TimeControl "180+2"]
[EndTime "11:35:59 PDT"]
[Termination "GMBenjaminBok won by resignation"]

1. e4 {[%clk 0:02:28.2]} 1... e5 {[%clk 0:02:57.9]} 2. Nf3 {[%clk 0:02:29.1]}
2... Nc6 {[%clk 0:02:59.3]} 3. Bb5 {[%clk 0:02:29.7]} 3... a6 {[%clk 0:03:00.7]}
4. Ba4 {[%clk 0:02:30.8]} 4... Nf6 {[%clk 0:03:02.1]} 5. O-O {[%clk 0:02:31.8]}
5... Nxe4 {[%clk 0:03:03.4]} 6. d4 {[%clk 0:02:32.4]} 6... b5 {[%clk 0:03:04.9]}
7. Bb3 {[%clk 0:02:33.6]} 7... d5 {[%clk 0:03:06.6]} 8. dxe5 {[%clk 0:02:34.6]}
8... Be6 {[%clk 0:03:07.5]} 9. Nbd2 {[%clk 0:02:35.4]} 9... Bc5 {[%clk
0:03:04.7]} 10. Qe2 {[%clk 0:02:35.3]} 10... Bf5 {[%clk 0:03:03.7]} 11. Nxe4
{[%clk 0:02:06.7]} 11... dxe4 {[%clk 0:02:34.4]} 12. Ng5 {[%clk 0:02:05.7]}
12... O-O {[%clk 0:01:56.5]} 13. Nxe4 {[%clk 0:02:03.5]} 13... Nd4 {[%clk
0:01:43.4]} 14. Qe1 {[%clk 0:02:00.3]} 14... Nxb3 {[%clk 0:01:20.5]} 15. axb3
{[%clk 0:02:00.2]} 15... Bb6 {[%clk 0:01:21.6]} 16. Qe2 {[%clk 0:01:36.3]} 16...
Re8 {[%clk 0:00:52.2]} 17. Ng3 {[%clk 0:01:34.9]} 17... Bg6 {[%clk 0:00:47]} 18.
Re1 {[%clk 0:01:29]} 18... Qe7 {[%clk 0:00:35.6]} 19. c3 {[%clk 0:01:21.2]}
19... h5 {[%clk 0:00:28.3]} 20. Bf4 {[%clk 0:01:18.1]} 20... h4 {[%clk
0:00:20.1]} 21. Ne4 {[%clk 0:01:12.6]} 21... f6 {[%clk 0:00:21.4]} 22. b4 {[%clk
0:01:05.1]} 22... h3 {[%clk 0:00:21.8]} 23. Qg4 {[%clk 0:00:54.7]} 23... Bxe4
{[%clk 0:00:16.4]} 24. Rxe4 {[%clk 0:00:54.5]} 24... hxg2 {[%clk 0:00:17.8]} 25.
Rae1 {[%clk 0:00:52.3]} 25... Qf7 {[%clk 0:00:18.2]} 26. e6 {[%clk 0:00:48.7]}
26... Qe7 {[%clk 0:00:19.3]} 27. Kxg2 {[%clk 0:00:49]} 27... Rad8 {[%clk
0:00:20.2]} 28. Rd1 {[%clk 0:00:47.5]} 28... Rxd1 {[%clk 0:00:20.6]} 29. Qxd1
{[%clk 0:00:49]} 29... Rd8 {[%clk 0:00:19.7]} 30. Qg4 {[%clk 0:00:48.4]} 30...
Rd5 {[%clk 0:00:20.1]} 31. Re2 {[%clk 0:00:42.2]} 31... c6 {[%clk 0:00:21.3]}
32. Rd2 {[%clk 0:00:38.8]} 32... g5 {[%clk 0:00:20.4]} 33. Rxd5 {[%clk
0:00:37.5]} 33... cxd5 {[%clk 0:00:22.3]} 34. h4 {[%clk 0:00:37.1]} 34... Bd8
{[%clk 0:00:23.5]} 35. hxg5 {[%clk 0:00:37.2]} 35... fxg5 {[%clk 0:00:25.4]} 36.
Be3 {[%clk 0:00:37.8]} 36... Kf8 {[%clk 0:00:26]} 37. Qf5+ {[%clk 0:00:37.8]}
37... Kg8 {[%clk 0:00:25.9]} 38. Bd4 {[%clk 0:00:36.3]} 38... Qh7 {[%clk
0:00:25.3]} 39. Qxd5 {[%clk 0:00:36.9]} 39... Be7 {[%clk 0:00:23.5]} 40. Qa8+
{[%clk 0:00:37.2]} 40... Bf8 {[%clk 0:00:24.7]} 41. Bc5 {[%clk 0:00:37.5]} 41...
Qf5 {[%clk 0:00:24.7]} 42. Qxf8+ {[%clk 0:00:32.8]} 42... Qxf8 {[%clk
0:00:25.9]} 43. Bxf8 {[%clk 0:00:33.5]} 43... Kxf8 {[%clk 0:00:27.8]} 44. Kf3
{[%clk 0:00:34.3]} 1-0

[Event "*** Titled Tuesday 3|2 Blitz"]
[Site "Chess.com"]
[Date "2015.04.07"]
[Round "3"]
[White "Dlugy"]
[Black "bugsbunny444"]
[Result "1-0"]
[WhiteElo "2516"]
[BlackElo "2293"]
[TimeControl "180+2"]
[EndTime "11:36:08 PDT"]
[Termination "Dlugy won on time"]

1. d4 {[%clk 0:03:01.9]} 1... e6 {[%clk 0:03:00.8]} 2. c4 {[%clk 0:03:02.4]}
2... b6 {[%clk 0:03:02.2]} 3. e4 {[%clk 0:03:03]} 3... Bb7 {[%clk 0:03:03.4]} 4.
Bd3 {[%clk 0:03:04.3]} 4... Bb4+ {[%clk 0:03:04.7]} 5. Bd2 {[%clk 0:03:05.2]}
5... Bxd2+ {[%clk 0:03:06.3]} 6. Nxd2 {[%clk 0:03:06.8]} 6... Qf6 {[%clk
0:03:03.5]} 7. Ngf3 {[%clk 0:03:06.1]} 7... Nc6 {[%clk 0:03:02.6]} 8. e5 {[%clk
0:02:58.1]} 8... Qf4 {[%clk 0:02:47.9]} 9. g3 {[%clk 0:02:59]} 9... Qh6 {[%clk
0:02:48]} 10. O-O {[%clk 0:02:44.7]} 10... Nge7 {[%clk 0:02:44.8]} 11. Be4
{[%clk 0:02:42]} 11... f5 {[%clk 0:02:14.9]} 12. exf6 {[%clk 0:02:42]} 12...
Qxf6 {[%clk 0:02:15.7]} 13. d5 {[%clk 0:02:42.7]} 13... exd5 {[%clk 0:01:21.3]}
14. cxd5 {[%clk 0:02:43.4]} 14... Nd8 {[%clk 0:01:21.9]} 15. Nc4 {[%clk
0:02:30.3]} 15... Nf7 {[%clk 0:00:43.5]} 16. Re1 {[%clk 0:02:26.1]} 16... O-O
{[%clk 0:00:38.8]} 17. Qd3 {[%clk 0:02:04]} 17... Ng6 {[%clk 0:00:25.2]} 18. h4
{[%clk 0:02:00.5]} 18... Rfe8 {[%clk 0:00:18.8]} 19. Re2 {[%clk 0:01:57.5]}
19... Nf8 {[%clk 0:00:15.3]} 20. Rae1 {[%clk 0:01:58]} 20... h6 {[%clk
0:00:12.7]} 21. b4 {[%clk 0:01:47.6]} 21... Kh8 {[%clk 0:00:12.9]} 22. a4 {[%clk
0:01:48.1]} 22... d6 {[%clk 0:00:10.1]} 23. Nd4 {[%clk 0:01:46.1]} 23... Ne5
{[%clk 0:00:10.7]} 24. Nxe5 {[%clk 0:01:46.9]} 24... Rxe5 {[%clk 0:00:06.6]} 25.
f4 {[%clk 0:01:38.1]} 25... Re7 {[%clk 0:00:07.3]} 26. Nf5 {[%clk 0:01:39.3]}
26... Ree8 {[%clk 0:00:06.5]} 27. h5 {[%clk 0:01:36.6]} 27... Rad8 {[%clk
0:00:06]} 28. Bf3 {[%clk 0:01:37.4]} 28... Bc8 {[%clk 0:00:06.2]} 29. Nd4 {[%clk
0:01:35.8]} 29... Rxe2 {[%clk 0:00:06.7]} 30. Rxe2 {[%clk 0:01:37.3]} 30... Qf7
{[%clk 0:00:06.5]} 31. f5 {[%clk 0:01:34.4]} 31... Nd7 {[%clk 0:00:06]} 32. Ne6
{[%clk 0:01:35.5]} 32... Re8 {[%clk 0:00:03.3]} 33. g4 {[%clk 0:01:24.7]} 33...
Ne5 {[%clk 0:00:04.8]} 34. Qc3 {[%clk 0:01:24.1]} 34... Bxe6 {[%clk 0:00:03.8]}
35. dxe6 {[%clk 0:01:24.3]} 35... Qe7 {[%clk 0:00:05.3]} 36. Kg2 {[%clk
0:01:21.9]} 36... Rc8 {[%clk 0:00:03.3]} 37. b5 {[%clk 0:01:22.5]} 37... Qf6
{[%clk 0:00:02.4]} 38. Re3 {[%clk 0:01:14.8]} 38... Qe7 {[%clk 0:00:02.9]} 39.
Kg3 {[%clk 0:01:15.9]} 39... Rf8 {[%clk 0:00:04]} 40. Qd4 {[%clk 0:01:13.4]}
40... Re8 {[%clk 0:00:04.3]} 41. Rc3 {[%clk 0:01:13.8]} 41... Qf6 {[%clk
0:00:03.3]} 42. Qe3 {[%clk 0:01:12.6]} 42... Re7 {[%clk 0:00:04.2]} 43. Rc2
{[%clk 0:01:10.3]} 43... Kg8 {[%clk 0:00:03.8]} 44. Bd5 {[%clk 0:01:11]} 44...
Kh7 {[%clk 0:00:03.4]} 45. Qf4 {[%clk 0:01:10.8]} 45... Kh8 {[%clk 0:00:03.9]}
46. Rg2 {[%clk 0:01:11.3]} 46... Qg5 {[%clk 0:00:04]} 47. Qxg5 {[%clk
0:01:11.8]} 47... hxg5 {[%clk 0:00:05.3]} 48. h6 {[%clk 0:01:12.8]} 48... gxh6
{[%clk 0:00:06.2]} 49. f6 {[%clk 0:01:13.9]} 49... Re8 {[%clk 0:00:06.3]} 50. e7
{[%clk 0:01:14.6]} 50... Ng6 {[%clk 0:00:04.6]} 51. Bf7 {[%clk 0:01:14.9]} 1-0

[Event "*** Titled Tuesday 3|2 Blitz"]
[Site "Chess.com"]
[Date "2015.04.07"]
[Round "3"]
[White "chillinx"]
[Black "grandmastergauri"]
[Result "1-0"]
[WhiteElo "2294"]
[BlackElo "2271"]
[TimeControl "180+2"]
[EndTime "11:36:36 PDT"]
[Termination "chillinx won by checkmate"]

1. Nf3 {[%clk 0:03:01.9]} 1... Nf6 {[%clk 0:03:00.4]} 2. g3 {[%clk 0:02:56.3]}
2... b6 {[%clk 0:02:59]} 3. Bg2 {[%clk 0:02:57.6]} 3... Bb7 {[%clk 0:03:00.3]}
4. O-O {[%clk 0:02:58.3]} 4... g6 {[%clk 0:03:01.5]} 5. d3 {[%clk 0:02:59.5]}
5... d5 {[%clk 0:02:58.2]} 6. Nbd2 {[%clk 0:03:00]} 6... Bg7 {[%clk 0:02:58.2]}
7. e4 {[%clk 0:02:59.1]} 7... dxe4 {[%clk 0:02:58.9]} 8. dxe4 {[%clk 0:02:59.7]}
8... Nxe4 {[%clk 0:02:49.4]} 9. Ng5 {[%clk 0:03:00]} 9... Nd6 {[%clk 0:02:49.3]}
10. Bxb7 {[%clk 0:02:59.8]} 10... Nxb7 {[%clk 0:02:50.1]} 11. Nxf7 {[%clk
0:02:59.4]} 11... Kxf7 {[%clk 0:02:49]} 12. Qf3+ {[%clk 0:03:00.1]} 12... Bf6
{[%clk 0:02:50]} 13. Qxb7 {[%clk 0:03:02]} 13... Nd7 {[%clk 0:02:50.8]} 14. Ne4
{[%clk 0:02:52]} 14... Nc5 {[%clk 0:02:40.4]} 15. Nxc5 {[%clk 0:02:50.5]} 15...
bxc5 {[%clk 0:02:42.3]} 16. Qb3+ {[%clk 0:02:44.8]} 16... Kg7 {[%clk 0:02:42.5]}
17. c3 {[%clk 0:02:44.3]} 17... Qd3 {[%clk 0:02:41.7]} 18. Rd1 {[%clk
0:02:35.6]} 18... Qe2 {[%clk 0:02:40.3]} 19. Be3 {[%clk 0:02:26.6]} 19... Rab8
{[%clk 0:02:39.5]} 20. Rd2 {[%clk 0:02:21.3]} 20... Qf3 {[%clk 0:02:16.1]} 21.
Qd1 {[%clk 0:02:13.3]} 21... Qe4 {[%clk 0:02:12.2]} 22. Bxc5 {[%clk 0:02:06.6]}
22... Rb5 {[%clk 0:02:07.9]} 23. Re2 {[%clk 0:02:01.9]} 23... Qf5 {[%clk
0:01:31.7]} 24. Bxe7 {[%clk 0:01:57.9]} 24... Be5 {[%clk 0:01:32.8]} 25. f4
{[%clk 0:01:34.8]} 25... Bxf4 {[%clk 0:01:24.1]} 26. gxf4 {[%clk 0:01:26.7]}
26... Re8 {[%clk 0:01:00.9]} 27. Qd4+ {[%clk 0:01:18.4]} 27... Kf7 {[%clk
0:00:49.8]} 28. Qc4+ {[%clk 0:01:11.2]} 28... Rd5 {[%clk 0:00:50.9]} 29. Rae1
{[%clk 0:00:52.1]} 29... Kg7 {[%clk 0:00:28.9]} 30. Qe4 {[%clk 0:00:32.5]} 30...
Qg4+ {[%clk 0:00:18.6]} 31. Qg2 {[%clk 0:00:33.3]} 31... Qxf4 {[%clk 0:00:17.7]}
32. Bf6+ {[%clk 0:00:34.2]} 32... Qxf6 {[%clk 0:00:12.8]} 33. Rxe8 {[%clk
0:00:36.1]} 33... Rf5 {[%clk 0:00:12.5]} 34. R8e7+ {[%clk 0:00:23.3]} 34... Kh6
{[%clk 0:00:13.6]} 35. R7e3 {[%clk 0:00:14.7]} 35... Rg5 {[%clk 0:00:12.7]} 36.
Rg3 {[%clk 0:00:12.4]} 36... Qb6+ {[%clk 0:00:14]} 37. Kh1 {[%clk 0:00:10.5]}
37... Rf5 {[%clk 0:00:15.4]} 38. Rf3 {[%clk 0:00:11.2]} 38... Rg5 {[%clk
0:00:16.4]} 39. Qh3+ {[%clk 0:00:12.7]} 39... Rh5 {[%clk 0:00:17.9]} 40. Qg2
{[%clk 0:00:12.2]} 40... Qc6 {[%clk 0:00:19.3]} 41. Rg3 {[%clk 0:00:13.2]} 41...
Qd6 {[%clk 0:00:19.9]} 42. Rh3 {[%clk 0:00:13.9]} 42... Qe5 {[%clk 0:00:17.8]}
43. Rxh5+ {[%clk 0:00:15]} 43... Qxh5 {[%clk 0:00:19.6]} 44. Re2 {[%clk
0:00:16.3]} 44... Qf5 {[%clk 0:00:20.3]} 45. Rf2 {[%clk 0:00:18.2]} 45... Qb1+
{[%clk 0:00:21.4]} 46. Qg1 {[%clk 0:00:19.4]} 46... Qe4+ {[%clk 0:00:23]} 47.
Qg2 {[%clk 0:00:21.3]} 47... Qb1+ {[%clk 0:00:23.8]} 48. Rf1 {[%clk 0:00:23.2]}
48... Qxa2 {[%clk 0:00:24.8]} 49. h3 {[%clk 0:00:24.3]} 49... Kg7 {[%clk
0:00:26.2]} 50. Qf2 {[%clk 0:00:25.5]} 50... Qe6 {[%clk 0:00:27.3]} 51. Qf8#
{[%clk 0:00:26.1]} 1-0

[Event "*** Titled Tuesday 3|2 Blitz"]
[Site "Chess.com"]
[Date "2015.04.07"]
[Round "3"]
[White "kesarev"]
[Black "AnastasiaProtopopova"]
[Result "1-0"]
[WhiteElo "2199"]
[BlackElo "1953"]
[TimeControl "180+2"]
[EndTime "11:36:59 PDT"]
[Termination "kesarev won by resignation"]

1. Nf3 {[%clk 0:03:01.9]} 1... Nf6 {[%clk 0:02:00.8]} 2. c4 {[%clk 0:03:02]}
2... e6 {[%clk 0:02:01.7]} 3. g3 {[%clk 0:03:01.4]} 3... d5 {[%clk 0:02:02]} 4.
b3 {[%clk 0:03:01.5]} 4... Be7 {[%clk 0:01:35]} 5. Bg2 {[%clk 0:03:00.5]} 5...
O-O {[%clk 0:01:35.6]} 6. O-O {[%clk 0:03:01.3]} 6... c5 {[%clk 0:01:35.9]} 7.
Bb2 {[%clk 0:03:00.9]} 7... d4 {[%clk 0:01:35.3]} 8. e3 {[%clk 0:03:01.9]} 8...
Nc6 {[%clk 0:01:34.6]} 9. exd4 {[%clk 0:03:03]} 9... cxd4 {[%clk 0:01:35.2]} 10.
Re1 {[%clk 0:03:04.5]} 10... Bc5 {[%clk 0:01:30.1]} 11. d3 {[%clk 0:03:02.5]}
11... Re8 {[%clk 0:01:29.9]} 12. Na3 {[%clk 0:03:01.6]} 12... e5 {[%clk
0:01:29.3]} 13. Nc2 {[%clk 0:03:02.2]} 13... Bf5 {[%clk 0:01:28.2]} 14. a3
{[%clk 0:02:42.5]} 14... a5 {[%clk 0:01:18.5]} 15. b4 {[%clk 0:02:43]} 15...
axb4 {[%clk 0:01:10.8]} 16. axb4 {[%clk 0:02:43.7]} 16... Bd6 {[%clk 0:01:05.5]}
17. b5 {[%clk 0:02:36.5]} 17... Na5 {[%clk 0:00:53.1]} 18. Nh4 {[%clk 0:02:24]}
18... Bg4 {[%clk 0:00:50]} 19. Qb1 {[%clk 0:02:13.6]} 19... Nb3 {[%clk
0:00:46.2]} 20. Rxa8 {[%clk 0:02:11]} 20... Qxa8 {[%clk 0:00:46.1]} 21. h3
{[%clk 0:01:45.8]} 21... Bd7 {[%clk 0:00:42.6]} 22. Ba3 {[%clk 0:01:32.8]} 22...
Nc5 {[%clk 0:00:32.3]} 23. Bb4 {[%clk 0:01:26.3]} 23... Qb8 {[%clk 0:00:26.7]}
24. Na1 {[%clk 0:01:15.1]} 24... Qc8 {[%clk 0:00:18.7]} 25. Kh2 {[%clk
0:01:11.8]} 25... h6 {[%clk 0:00:18.8]} 26. Nb3 {[%clk 0:01:09.3]} 26... Nxb3
{[%clk 0:00:15]} 27. Qxb3 {[%clk 0:01:09.7]} 27... Bxb4 {[%clk 0:00:15.9]} 28.
Qxb4 {[%clk 0:01:10.7]} 28... Qc7 {[%clk 0:00:10.5]} 29. b6 {[%clk 0:01:02.8]}
29... Qc8 {[%clk 0:00:10.8]} 30. Nf3 {[%clk 0:01:03.2]} 30... Qb8 {[%clk
0:00:09.6]} 31. Qc5 {[%clk 0:00:58.5]} 31... Bc6 {[%clk 0:00:10.9]} 32. Nxe5
{[%clk 0:00:50.6]} 32... Bxg2 {[%clk 0:00:10.2]} 33. Kxg2 {[%clk 0:00:51.2]}
33... Rd8 {[%clk 0:00:06]} 34. Qe7 {[%clk 0:00:45.6]} 34... Rf8 {[%clk
0:00:04.2]} 35. Nf3 {[%clk 0:00:40]} 35... Re8 {[%clk 0:00:03.6]} 36. Qc5 {[%clk
0:00:40.1]} 36... Rxe1 {[%clk 0:00:04.5]} 37. Nxe1 {[%clk 0:00:41.8]} 37... Qd8
{[%clk 0:00:05.8]} 38. Nf3 {[%clk 0:00:40.8]} 38... Nd7 {[%clk 0:00:06.9]} 39.
Qxd4 {[%clk 0:00:41.8]} 39... Kf8 {[%clk 0:00:07.3]} 40. c5 {[%clk 0:00:40.8]}
40... Qe7 {[%clk 0:00:07.2]} 41. c6 {[%clk 0:00:36.2]} 41... bxc6 {[%clk
0:00:07.8]} 42. b7 {[%clk 0:00:37]} 42... Nb8 {[%clk 0:00:09.4]} 43. Qb6 {[%clk
0:00:37.3]} 43... Qd7 {[%clk 0:00:09.2]} 44. d4 {[%clk 0:00:37.2]} 44... Ke7
{[%clk 0:00:09.2]} 45. Ne5 {[%clk 0:00:34.5]} 45... Qd5+ {[%clk 0:00:09.4]} 46.
Kh2 {[%clk 0:00:34.9]} 46... Qa2 {[%clk 0:00:08.7]} 47. Qc7+ {[%clk 0:00:31.3]}
47... Ke6 {[%clk 0:00:08.6]} 48. Qxf7+ {[%clk 0:00:32.2]} 1-0